[Event "*** SCC Grand Prix: Titled Tuesday Blitz"]
[Site "Chess.com"]
[Date "2020.06.09"]
[Round "8"]
[White "alexrustemov"]
[Black "earling8018"]
[Result "1-0"]
[WhiteElo "2666"]
[BlackElo "2081"]
[TimeControl "180+1"]
[EndTime "10:36:25 PDT"]
[Termination "alexrustemov won by resignation"]

1. d4 {[%clk 0:03:00.9]} 1... d5 {[%clk 0:02:57.2]} 2. c4 {[%clk 0:03:00.1]}
2... e6 {[%clk 0:02:55.5]} 3. Nc3 {[%clk 0:02:58.1]} 3... c5 {[%clk 0:02:55.7]}
4. cxd5 {[%clk 0:02:57.3]} 4... exd5 {[%clk 0:02:56.5]} 5. Nf3 {[%clk
0:02:56.8]} 5... Nf6 {[%clk 0:02:52.8]} 6. g3 {[%clk 0:02:52.9]} 6... Nc6 {[%clk
0:02:51.3]} 7. Bg2 {[%clk 0:02:52.3]} 7... Be7 {[%clk 0:02:51.7]} 8. O-O {[%clk
0:02:51.7]} 8... O-O {[%clk 0:02:52]} 9. Bg5 {[%clk 0:02:50.7]} 9... cxd4 {[%clk
0:02:47.3]} 10. Nxd4 {[%clk 0:02:50.3]} 10... h6 {[%clk 0:02:40.3]} 11. Be3
{[%clk 0:02:49.6]} 11... Re8 {[%clk 0:02:40.4]} 12. Rc1 {[%clk 0:02:43.8]} 12...
Bg4 {[%clk 0:02:39.6]} 13. h3 {[%clk 0:02:42.5]} 13... Be6 {[%clk 0:02:35.2]}
14. Nxe6 {[%clk 0:02:27.1]} 14... fxe6 {[%clk 0:02:34.6]} 15. f4 {[%clk
0:02:26.6]} 15... Qd7 {[%clk 0:01:55]} 16. Bf2 {[%clk 0:02:22.9]} 16... Rac8
{[%clk 0:01:51.2]} 17. e4 {[%clk 0:02:18.8]} 17... dxe4 {[%clk 0:01:47.7]} 18.
Qxd7 {[%clk 0:02:14.8]} 18... Nxd7 {[%clk 0:01:47.3]} 19. Nxe4 {[%clk
0:02:14.2]} 19... e5 {[%clk 0:01:40.6]} 20. Rfd1 {[%clk 0:02:10]} 20... Red8
{[%clk 0:01:24.7]} 21. f5 {[%clk 0:01:49.7]} 21... Nb6 {[%clk 0:00:57.3]} 22. g4
{[%clk 0:01:41]} 22... Kf7 {[%clk 0:00:56.8]} 23. Kf1 {[%clk 0:01:24.3]} 23...
Nd4 {[%clk 0:00:56.5]} 24. Rxc8 {[%clk 0:01:19.8]} 24... Nxc8 {[%clk 0:00:51.5]}
25. Nc3 {[%clk 0:01:07.6]} 25... Bc5 {[%clk 0:00:35.9]} 26. Bxb7 {[%clk
0:01:03.7]} 26... Nd6 {[%clk 0:00:35.5]} 27. Bg2 {[%clk 0:00:58.1]} 27... h5
{[%clk 0:00:32.8]} 28. Ne4 {[%clk 0:00:52.9]} 28... Nxe4 {[%clk 0:00:27.4]} 29.
Bxe4 {[%clk 0:00:53.8]} 29... hxg4 {[%clk 0:00:27.9]} 30. hxg4 {[%clk
0:00:53.6]} 30... Rb8 {[%clk 0:00:20.7]} 31. b3 {[%clk 0:00:49.2]} 31... a5
{[%clk 0:00:20.5]} 32. Rc1 {[%clk 0:00:47]} 32... Bb6 {[%clk 0:00:17]} 33. Rc4
{[%clk 0:00:45.1]} 33... Ke7 {[%clk 0:00:14.6]} 34. Kg2 {[%clk 0:00:43.5]} 34...
Kd6 {[%clk 0:00:14.5]} 35. Bg3 {[%clk 0:00:29.4]} 35... Bc5 {[%clk 0:00:13.3]}
36. Be1 {[%clk 0:00:21.7]} 36... Bb4 {[%clk 0:00:09.5]} 37. Bg3 {[%clk
0:00:17.6]} 37... Bc5 {[%clk 0:00:08]} 38. Ra4 {[%clk 0:00:16.9]} 38... Bb4
{[%clk 0:00:06.2]} 39. a3 {[%clk 0:00:16.3]} 39... Bc3 {[%clk 0:00:04.9]} 40. b4
{[%clk 0:00:10.8]} 40... axb4 {[%clk 0:00:04.4]} 41. Ra6+ {[%clk 0:00:10.3]}
41... Kc5 {[%clk 0:00:02.5]} 42. axb4+ {[%clk 0:00:09.7]} 42... Rxb4 {[%clk
0:00:02]} 43. Bxe5 {[%clk 0:00:09.6]} 43... Rb2+ {[%clk 0:00:01.5]} 44. Kh3
{[%clk 0:00:08.7]} 44... Rb6 {[%clk 0:00:02]} 45. Rxb6 {[%clk 0:00:08]} 45...
Kxb6 {[%clk 0:00:02.6]} 46. Bxg7 {[%clk 0:00:07.2]} 46... Kc5 {[%clk 0:00:01.6]}
47. Bh6 {[%clk 0:00:04.7]} 47... Bd2 {[%clk 0:00:02.1]} 48. Bxd2 {[%clk
0:00:03.8]} 1-0

[Event "*** SCC Grand Prix: Titled Tuesday Blitz"]
[Site "Chess.com"]
[Date "2020.06.09"]
[Round "8"]
[White "HanSchut"]
[Black "The_Machine04"]
[Result "1-0"]
[WhiteElo "2198"]
[BlackElo "2268"]
[TimeControl "180+1"]
[EndTime "10:36:25 PDT"]
[Termination "HanSchut won on time"]

1. e4 {[%clk 0:03:00.9]} 1... d6 {[%clk 0:02:51.9]} 2. d4 {[%clk 0:02:59.4]}
2... Nf6 {[%clk 0:02:48.6]} 3. Nc3 {[%clk 0:02:58.9]} 3... e5 {[%clk 0:02:47.7]}
4. f4 {[%clk 0:02:58.2]} 4... exd4 {[%clk 0:02:46.5]} 5. Qxd4 {[%clk 0:02:59.1]}
5... Nc6 {[%clk 0:02:47.1]} 6. Bb5 {[%clk 0:02:51.7]} 6... Bd7 {[%clk
0:02:46.7]} 7. Bxc6 {[%clk 0:02:51.9]} 7... Bxc6 {[%clk 0:02:47.6]} 8. Nf3
{[%clk 0:02:47.5]} 8... g6 {[%clk 0:02:43.1]} 9. Nd5 {[%clk 0:02:22.1]} 9... Bg7
{[%clk 0:02:34.6]} 10. Nxf6+ {[%clk 0:02:14.9]} 10... Qxf6 {[%clk 0:02:31.4]}
11. Qd3 {[%clk 0:01:53.6]} 11... O-O {[%clk 0:02:27.6]} 12. O-O {[%clk
0:01:53.5]} 12... Rae8 {[%clk 0:02:24.4]} 13. Re1 {[%clk 0:01:52.7]} 13... Qe7
{[%clk 0:02:11.7]} 14. e5 {[%clk 0:01:43.2]} 14... dxe5 {[%clk 0:02:07.5]} 15.
Nxe5 {[%clk 0:01:35.6]} 15... f6 {[%clk 0:01:55.2]} 16. Nf3 {[%clk 0:01:30.9]}
16... Be4 {[%clk 0:01:42.5]} 17. Qb3+ {[%clk 0:01:20]} 17... Qf7 {[%clk
0:01:41.7]} 18. Qxf7+ {[%clk 0:01:11]} 18... Rxf7 {[%clk 0:01:42.6]} 19. Nd2
{[%clk 0:00:51.7]} 19... Bc6 {[%clk 0:01:39.2]} 20. Rxe8+ {[%clk 0:00:51.5]}
20... Bxe8 {[%clk 0:01:40.1]} 21. Kf2 {[%clk 0:00:50.3]} 21... f5 {[%clk
0:01:38.3]} 22. c3 {[%clk 0:00:50.2]} 22... Bf8 {[%clk 0:01:35.9]} 23. Nf3
{[%clk 0:00:49.4]} 23... Bc6 {[%clk 0:01:21.9]} 24. Be3 {[%clk 0:00:47.6]} 24...
Bxf3 {[%clk 0:01:19.3]} 25. Kxf3 {[%clk 0:00:47.8]} 25... Bd6 {[%clk 0:01:18.1]}
26. Re1 {[%clk 0:00:43.7]} 26... Re7 {[%clk 0:01:16]} 27. Re2 {[%clk 0:00:41.4]}
27... a6 {[%clk 0:01:15.4]} 28. g3 {[%clk 0:00:41.4]} 28... Kf7 {[%clk
0:01:15.2]} 29. Bd4 {[%clk 0:00:37.3]} 29... Rxe2 {[%clk 0:01:14.8]} 30. Kxe2
{[%clk 0:00:37.8]} 30... Ke6 {[%clk 0:01:13.4]} 31. Kd3 {[%clk 0:00:37.4]} 31...
b5 {[%clk 0:01:11.8]} 32. b3 {[%clk 0:00:32.8]} 32... Kd5 {[%clk 0:01:02.9]} 33.
c4+ {[%clk 0:00:32.1]} 33... bxc4+ {[%clk 0:01:02.7]} 34. bxc4+ {[%clk 0:00:33]}
34... Kc6 {[%clk 0:01:02.6]} 35. Kc3 {[%clk 0:00:20.6]} 35... h5 {[%clk
0:00:50]} 36. Kd3 {[%clk 0:00:20.4]} 36... Bb4 {[%clk 0:00:48.7]} 37. Bb2 {[%clk
0:00:16]} 37... Bc5 {[%clk 0:00:46.6]} 38. Bd4 {[%clk 0:00:15.7]} 38... Kb6
{[%clk 0:00:41]} 39. Kc3 {[%clk 0:00:15.3]} 39... Kc6 {[%clk 0:00:32.3]} 40. Kd3
{[%clk 0:00:15.3]} 40... Kd6 {[%clk 0:00:32.4]} 41. Kc3 {[%clk 0:00:15.1]} 41...
Bb6 {[%clk 0:00:25.2]} 42. Kd3 {[%clk 0:00:13.9]} 42... Ba5 {[%clk 0:00:17.8]}
43. Be5+ {[%clk 0:00:12.1]} 43... Kc6 {[%clk 0:00:17.6]} 44. Bd4 {[%clk
0:00:12.6]} 44... Bb4 {[%clk 0:00:15.8]} 45. Be5 {[%clk 0:00:11.7]} 45... Bd6
{[%clk 0:00:15.4]} 46. Bd4 {[%clk 0:00:10.2]} 46... Ba3 {[%clk 0:00:15.4]} 47.
Be5 {[%clk 0:00:10.4]} 47... a5 {[%clk 0:00:15.5]} 48. Bd4 {[%clk 0:00:10.5]}
48... a4 {[%clk 0:00:15.4]} 49. Be5 {[%clk 0:00:10.8]} 49... Kc5 {[%clk
0:00:14.4]} 50. Bd4+ {[%clk 0:00:10.5]} 50... Kb4 {[%clk 0:00:13.3]} 51. Be5
{[%clk 0:00:11]} 51... Bc1 {[%clk 0:00:04.6]} 52. Bxc7 {[%clk 0:00:07.1]} 52...
Ka3 {[%clk 0:00:04.9]} 53. Kc2 {[%clk 0:00:05.9]} 1-0

[Event "*** SCC Grand Prix: Titled Tuesday Blitz"]
[Site "Chess.com"]
[Date "2020.06.09"]
[Round "8"]
[White "g3god"]
[Black "tigra"]
[Result "0-1"]
[WhiteElo "2880"]
[BlackElo "2756"]
[TimeControl "180+1"]
[EndTime "10:36:27 PDT"]
[Termination "tigra won on time"]

1. e4 {[%clk 0:03:00.9]} 1... c5 {[%clk 0:02:56.4]} 2. Nf3 {[%clk 0:03:00.6]}
2... g6 {[%clk 0:02:56.1]} 3. d4 {[%clk 0:02:55.8]} 3... cxd4 {[%clk 0:02:57]}
4. Nxd4 {[%clk 0:02:55.7]} 4... Nc6 {[%clk 0:02:56.6]} 5. Nc3 {[%clk 0:02:54.1]}
5... Bg7 {[%clk 0:02:56.4]} 6. Be3 {[%clk 0:02:54]} 6... Nf6 {[%clk 0:02:56.9]}
7. Bc4 {[%clk 0:02:53.9]} 7... Qa5 {[%clk 0:02:54]} 8. O-O {[%clk 0:02:50.5]}
8... O-O {[%clk 0:02:40.9]} 9. Bb3 {[%clk 0:02:47.5]} 9... d6 {[%clk 0:02:26.6]}
10. h3 {[%clk 0:02:47.2]} 10... Bd7 {[%clk 0:02:24.6]} 11. Re1 {[%clk
0:02:33.1]} 11... Rfc8 {[%clk 0:02:22.4]} 12. Nf3 {[%clk 0:02:26.4]} 12... Qh5
{[%clk 0:02:19.1]} 13. Ng5 {[%clk 0:02:25]} 13... Qxd1 {[%clk 0:02:06.4]} 14.
Raxd1 {[%clk 0:02:24.3]} 14... Be8 {[%clk 0:02:05.1]} 15. f4 {[%clk 0:02:23.5]}
15... h6 {[%clk 0:01:46.9]} 16. Nf3 {[%clk 0:02:23.2]} 16... Nd7 {[%clk
0:01:47.1]} 17. Bf2 {[%clk 0:02:15.4]} 17... Bxc3 {[%clk 0:01:41.1]} 18. bxc3
{[%clk 0:02:15.1]} 18... Na5 {[%clk 0:01:36.1]} 19. e5 {[%clk 0:02:14.5]} 19...
dxe5 {[%clk 0:01:27]} 20. fxe5 {[%clk 0:02:14.1]} 20... Nc5 {[%clk 0:01:20.8]}
21. e6 {[%clk 0:01:57.4]} 21... f6 {[%clk 0:01:19.6]} 22. Bd5 {[%clk 0:01:30.5]}
22... Na4 {[%clk 0:01:14.6]} 23. c4 {[%clk 0:01:23.3]} 23... Nc3 {[%clk
0:01:06.9]} 24. Rd3 {[%clk 0:01:21.3]} 24... Nxd5 {[%clk 0:01:06.6]} 25. cxd5
{[%clk 0:01:20.7]} 25... Rxc2 {[%clk 0:01:02.9]} 26. d6 {[%clk 0:01:12.3]} 26...
exd6 {[%clk 0:01:03.2]} 27. Rxd6 {[%clk 0:01:12.2]} 27... Rac8 {[%clk
0:00:35.8]} 28. e7 {[%clk 0:01:10.2]} 28... Kf7 {[%clk 0:00:33]} 29. Ree6 {[%clk
0:00:48.6]} 29... Rxa2 {[%clk 0:00:14.9]} 30. Rxf6+ {[%clk 0:00:40.7]} 30...
Kxe7 {[%clk 0:00:15.5]} 31. Rde6+ {[%clk 0:00:38.2]} 31... Kd8 {[%clk
0:00:15.7]} 32. Bxa7 {[%clk 0:00:37.3]} 32... Nc4 {[%clk 0:00:15.3]} 33. Bd4
{[%clk 0:00:36.5]} 33... Rc6 {[%clk 0:00:15.6]} 34. Rxc6 {[%clk 0:00:28.5]}
34... bxc6 {[%clk 0:00:16.5]} 35. Rf8 {[%clk 0:00:25.1]} 35... Kd7 {[%clk
0:00:16.3]} 36. Rh8 {[%clk 0:00:20.4]} 36... h5 {[%clk 0:00:16.6]} 37. Bc5
{[%clk 0:00:17.8]} 37... Ra1+ {[%clk 0:00:15.4]} 38. Kh2 {[%clk 0:00:17.5]}
38... Ra5 {[%clk 0:00:15.5]} 39. Bf2 {[%clk 0:00:15.3]} 39... Rf5 {[%clk
0:00:15.1]} 40. Rg8 {[%clk 0:00:12.6]} 40... Bf7 {[%clk 0:00:15]} 41. Ra8 {[%clk
0:00:11.2]} 41... Bd5 {[%clk 0:00:14.8]} 42. Ra7+ {[%clk 0:00:10.6]} 42... Ke8
{[%clk 0:00:14.9]} 43. Ra8+ {[%clk 0:00:09.3]} 43... Kd7 {[%clk 0:00:15.4]} 44.
Ra7+ {[%clk 0:00:09.1]} 44... Kc8 {[%clk 0:00:15.9]} 45. Rg7 {[%clk 0:00:04.7]}
45... Bxf3 {[%clk 0:00:16]} 46. gxf3 {[%clk 0:00:04.9]} 46... Rxf3 {[%clk
0:00:15.9]} 47. Bg3 {[%clk 0:00:05.3]} 47... Rf6 {[%clk 0:00:15.7]} 48. Bh4
{[%clk 0:00:05.3]} 48... Re6 {[%clk 0:00:15.7]} 49. Kg3 {[%clk 0:00:05.1]} 49...
Nd6 {[%clk 0:00:14.7]} 50. Kf4 {[%clk 0:00:04.9]} 50... c5 {[%clk 0:00:14.1]}
51. Rg8+ {[%clk 0:00:01.6]} 51... Kd7 {[%clk 0:00:14.3]} 52. Bf2 {[%clk
0:00:01.5]} 52... c4 {[%clk 0:00:14.2]} 0-1

[Event "*** SCC Grand Prix: Titled Tuesday Blitz"]
[Site "Chess.com"]
[Date "2020.06.09"]
[Round "8"]
[White "Jumbo"]
[Black "BlackBoarder"]
[Result "1-0"]
[WhiteElo "2828"]
[BlackElo "2663"]
[TimeControl "180+1"]
[EndTime "10:36:28 PDT"]
[Termination "Jumbo won by resignation"]

1. e4 {[%clk 0:03:00.9]} 1... e6 {[%clk 0:02:33.6]} 2. d4 {[%clk 0:02:57.8]}
2... d5 {[%clk 0:02:32.6]} 3. Nd2 {[%clk 0:02:58.4]} 3... c5 {[%clk 0:02:32.3]}
4. exd5 {[%clk 0:02:54.1]} 4... Qxd5 {[%clk 0:02:32.2]} 5. dxc5 {[%clk
0:02:52.8]} 5... Bxc5 {[%clk 0:02:31.7]} 6. Ngf3 {[%clk 0:02:51.5]} 6... Nf6
{[%clk 0:02:31.8]} 7. Bc4 {[%clk 0:02:42]} 7... Qc6 {[%clk 0:02:30.6]} 8. a4
{[%clk 0:02:40.7]} 8... O-O {[%clk 0:02:29.1]} 9. O-O {[%clk 0:02:39.7]} 9...
Nbd7 {[%clk 0:02:22.3]} 10. Qe2 {[%clk 0:02:38]} 10... b6 {[%clk 0:02:21.6]} 11.
a5 {[%clk 0:02:37.8]} 11... Qc7 {[%clk 0:02:13.3]} 12. Nb3 {[%clk 0:02:36.1]}
12... Bd6 {[%clk 0:02:07.5]} 13. Nbd4 {[%clk 0:01:48.5]} 13... a6 {[%clk
0:02:07.1]} 14. axb6 {[%clk 0:01:45.2]} 14... Qxb6 {[%clk 0:02:07.2]} 15. Rd1
{[%clk 0:01:41]} 15... Re8 {[%clk 0:01:49.2]} 16. c3 {[%clk 0:01:28.6]} 16...
Bb7 {[%clk 0:01:43.1]} 17. h3 {[%clk 0:01:22.7]} 17... h6 {[%clk 0:01:40.2]} 18.
Be3 {[%clk 0:00:44.7]} 18... Nd5 {[%clk 0:00:49.4]} 19. Bxd5 {[%clk 0:00:27.6]}
19... Bxd5 {[%clk 0:00:49.5]} 20. c4 {[%clk 0:00:26.8]} 20... Bxf3 {[%clk
0:00:28.1]} 21. Nxf3 {[%clk 0:00:25.4]} 21... Nc5 {[%clk 0:00:16.8]} 22. b4
{[%clk 0:00:25]} 22... Qxb4 {[%clk 0:00:14.4]} 23. Rab1 {[%clk 0:00:25]} 23...
Nb3 {[%clk 0:00:12.9]} 24. Qa2 {[%clk 0:00:12.8]} 24... Rab8 {[%clk 0:00:11.6]}
25. Rd3 {[%clk 0:00:07.3]} 25... Qxc4 {[%clk 0:00:06.8]} 26. Rdxb3 {[%clk
0:00:06.6]} 26... a5 {[%clk 0:00:02.5]} 27. Qb2 {[%clk 0:00:05.9]} 27... Rxb3
{[%clk 0:00:01.9]} 28. Qxb3 {[%clk 0:00:06.8]} 28... Qc6 {[%clk 0:00:02.6]} 29.
Qb6 {[%clk 0:00:05.8]} 29... Qd5 {[%clk 0:00:03.2]} 30. Qa6 {[%clk 0:00:05.4]}
30... Rd8 {[%clk 0:00:02.6]} 31. Qe2 {[%clk 0:00:02.6]} 31... Bb4 {[%clk
0:00:02.8]} 32. Bd4 {[%clk 0:00:02]} 32... Ra8 {[%clk 0:00:02.9]} 33. Kf1 {[%clk
0:00:02.6]} 33... f6 {[%clk 0:00:02.7]} 34. Rb2 {[%clk 0:00:02.9]} 34... Bf8
{[%clk 0:00:02.2]} 35. Be3 {[%clk 0:00:03.3]} 35... a4 {[%clk 0:00:02.7]} 36.
Ra2 {[%clk 0:00:03.9]} 36... a3 {[%clk 0:00:03.2]} 37. Ne1 {[%clk 0:00:04.1]}
37... Rb8 {[%clk 0:00:03.6]} 38. Qc2 {[%clk 0:00:03.8]} 38... Qb5+ {[%clk
0:00:03.3]} 39. Kg1 {[%clk 0:00:03.5]} 39... e5 {[%clk 0:00:03.8]} 40. Kh1
{[%clk 0:00:03.3]} 40... Kh8 {[%clk 0:00:04]} 41. h4 {[%clk 0:00:03.4]} 41...
Rd8 {[%clk 0:00:04.4]} 42. Kg1 {[%clk 0:00:03.3]} 42... Qd5 {[%clk 0:00:04.7]}
43. g3 {[%clk 0:00:03.6]} 43... Qb5 {[%clk 0:00:04.9]} 44. Kg2 {[%clk
0:00:03.8]} 44... Qb7+ {[%clk 0:00:04.6]} 45. Nf3 {[%clk 0:00:04.2]} 45... Rb8
{[%clk 0:00:04.1]} 46. Qc4 {[%clk 0:00:03.7]} 46... Rc8 {[%clk 0:00:03.3]} 47.
Qe6 {[%clk 0:00:03.1]} 47... Qc6 {[%clk 0:00:02.4]} 48. Qxc6 {[%clk 0:00:03]}
48... Rxc6 {[%clk 0:00:03.3]} 49. Nd2 {[%clk 0:00:03.1]} 49... Rb6 {[%clk
0:00:03.2]} 50. Bxb6 {[%clk 0:00:02.7]} 1-0

[Event "*** SCC Grand Prix: Titled Tuesday Blitz"]
[Site "Chess.com"]
[Date "2020.06.09"]
[Round "8"]
[White "Shuvalov"]
[Black "AlexOstrovskiy"]
[Result "0-1"]
[WhiteElo "2453"]
[BlackElo "2591"]
[TimeControl "180+1"]
[EndTime "10:36:29 PDT"]
[Termination "AlexOstrovskiy won on time"]

1. Nf3 {[%clk 0:03:00.9]} 1... d5 {[%clk 0:03:00.1]} 2. c4 {[%clk 0:02:58.4]}
2... d4 {[%clk 0:03:00.5]} 3. b4 {[%clk 0:02:57.7]} 3... g6 {[%clk 0:02:57]} 4.
d3 {[%clk 0:02:53.7]} 4... Bg7 {[%clk 0:02:56.2]} 5. g3 {[%clk 0:02:53.9]} 5...
e5 {[%clk 0:02:52.9]} 6. Bg2 {[%clk 0:02:53.4]} 6... Ne7 {[%clk 0:02:49.4]} 7.
O-O {[%clk 0:02:53.2]} 7... O-O {[%clk 0:02:49.6]} 8. Nbd2 {[%clk 0:02:51.9]}
8... a5 {[%clk 0:02:40.5]} 9. b5 {[%clk 0:02:41.4]} 9... c5 {[%clk 0:02:39.4]}
10. bxc6 {[%clk 0:02:39.5]} 10... Nexc6 {[%clk 0:02:37.5]} 11. Ba3 {[%clk
0:02:36.2]} 11... Nb4 {[%clk 0:02:28.9]} 12. c5 {[%clk 0:02:11.4]} 12... N8a6
{[%clk 0:02:21.1]} 13. Nc4 {[%clk 0:01:57.8]} 13... Qe7 {[%clk 0:02:11.8]} 14.
Nb6 {[%clk 0:01:54.1]} 14... Rb8 {[%clk 0:02:07.3]} 15. Nc4 {[%clk 0:01:49]}
15... Qxc5 {[%clk 0:01:57.7]} 16. Rc1 {[%clk 0:01:43.2]} 16... Qb5 {[%clk
0:01:54]} 17. Qb3 {[%clk 0:01:30.3]} 17... Be6 {[%clk 0:01:49.9]} 18. Ng5 {[%clk
0:01:30.1]} 18... Bd5 {[%clk 0:01:42.3]} 19. Bxd5 {[%clk 0:01:26.1]} 19... Qxd5
{[%clk 0:01:42.2]} 20. Ne4 {[%clk 0:01:08.1]} 20... Rfc8 {[%clk 0:01:37.7]} 21.
Nb6 {[%clk 0:00:56]} 21... Qxb3 {[%clk 0:01:26.7]} 22. axb3 {[%clk 0:00:56.9]}
22... Rc6 {[%clk 0:01:21.6]} 23. Nc4 {[%clk 0:00:54.2]} 23... b6 {[%clk
0:01:19]} 24. Ncd6 {[%clk 0:00:50.9]} 24... Bf8 {[%clk 0:01:13.8]} 25. Rxc6
{[%clk 0:00:38.2]} 25... Nxc6 {[%clk 0:01:14.5]} 26. Nf6+ {[%clk 0:00:34.2]}
26... Kg7 {[%clk 0:01:05.7]} 27. Nd7 {[%clk 0:00:26.1]} 27... Bxd6 {[%clk
0:01:04.7]} 28. Bxd6 {[%clk 0:00:22]} 28... Rd8 {[%clk 0:01:05]} 29. Bxe5+
{[%clk 0:00:22.3]} 29... Kh6 {[%clk 0:00:50.3]} 30. Bf4+ {[%clk 0:00:18.1]}
30... g5 {[%clk 0:00:50.4]} 31. Rc1 {[%clk 0:00:18.1]} 31... Nab4 {[%clk
0:00:49.6]} 32. Nxb6 {[%clk 0:00:15.3]} 32... gxf4 {[%clk 0:00:48.8]} 33. gxf4
{[%clk 0:00:16.2]} 33... Rg8+ {[%clk 0:00:26.1]} 34. Kf1 {[%clk 0:00:16.4]}
34... Rg4 {[%clk 0:00:26.2]} 35. Nd5 {[%clk 0:00:11.8]} 35... Nxd5 {[%clk
0:00:22.3]} 36. Rxc6+ {[%clk 0:00:11.4]} 36... Kg7 {[%clk 0:00:15]} 37. Rc5
{[%clk 0:00:11.4]} 37... Nxf4 {[%clk 0:00:15]} 38. Rxa5 {[%clk 0:00:10.9]} 38...
Nh3 {[%clk 0:00:15.2]} 39. e3 {[%clk 0:00:10.4]} 39... Rg1+ {[%clk 0:00:07.2]}
40. Ke2 {[%clk 0:00:10.6]} 40... Rg2 {[%clk 0:00:07.8]} 41. Rf5 {[%clk
0:00:09.6]} 41... dxe3 {[%clk 0:00:07.2]} 42. Kxe3 {[%clk 0:00:10.5]} 42... Rg6
{[%clk 0:00:06.4]} 43. b4 {[%clk 0:00:10]} 43... Ng5 {[%clk 0:00:05.8]} 44. b5
{[%clk 0:00:09.5]} 44... Ne6 {[%clk 0:00:04.4]} 45. b6 {[%clk 0:00:06.5]} 45...
Nd8 {[%clk 0:00:04.7]} 46. Rb5 {[%clk 0:00:04.8]} 46... Nb7 {[%clk 0:00:04.9]}
47. Kd4 {[%clk 0:00:04.7]} 47... Kf8 {[%clk 0:00:05.2]} 48. Rb2 {[%clk
0:00:03.4]} 48... Ke7 {[%clk 0:00:05.8]} 49. Kd5 {[%clk 0:00:03.6]} 49... Kd7
{[%clk 0:00:06.2]} 50. d4 {[%clk 0:00:02.8]} 50... Rd6+ {[%clk 0:00:07.1]} 51.
Kc4 {[%clk 0:00:02.7]} 51... h6 {[%clk 0:00:07]} 52. d5 {[%clk 0:00:02.7]} 52...
Rf6 {[%clk 0:00:07.4]} 53. h4 {[%clk 0:00:01.8]} 53... Rf5 {[%clk 0:00:07.6]}
0-1

[Event "*** SCC Grand Prix: Titled Tuesday Blitz"]
[Site "Chess.com"]
[Date "2020.06.09"]
[Round "8"]
[White "AshotParvanyan"]
[Black "diablanni"]
[Result "1-0"]
[WhiteElo "2434"]
[BlackElo "2328"]
[TimeControl "180+1"]
[EndTime "10:36:30 PDT"]
[Termination "AshotParvanyan won by checkmate"]

1. e4 {[%clk 0:03:00.9]} 1... c5 {[%clk 0:02:58.7]} 2. Nf3 {[%clk 0:03:00.8]}
2... Nc6 {[%clk 0:02:58.9]} 3. Nc3 {[%clk 0:03:00.4]} 3... g6 {[%clk 0:02:58.6]}
4. Bb5 {[%clk 0:02:59.3]} 4... Nf6 {[%clk 0:02:56.1]} 5. O-O {[%clk 0:02:51.4]}
5... Bg7 {[%clk 0:02:55.3]} 6. Bxc6 {[%clk 0:02:44.1]} 6... dxc6 {[%clk
0:02:54.7]} 7. e5 {[%clk 0:02:44.1]} 7... Ng4 {[%clk 0:02:53]} 8. Qe2 {[%clk
0:02:42.1]} 8... O-O {[%clk 0:02:47.7]} 9. h3 {[%clk 0:02:39.3]} 9... Nh6 {[%clk
0:02:45.2]} 10. d3 {[%clk 0:02:38.7]} 10... Nf5 {[%clk 0:02:44.4]} 11. Ne4
{[%clk 0:02:36.3]} 11... Nd4 {[%clk 0:01:59]} 12. Qd1 {[%clk 0:02:02.5]} 12...
Nxf3+ {[%clk 0:01:57.9]} 13. Qxf3 {[%clk 0:02:03.4]} 13... Bxe5 {[%clk
0:01:56.1]} 14. Nxc5 {[%clk 0:01:57.9]} 14... Qd5 {[%clk 0:01:45.8]} 15. Qxd5
{[%clk 0:01:39.9]} 15... cxd5 {[%clk 0:01:45.6]} 16. c3 {[%clk 0:01:35.9]} 16...
b6 {[%clk 0:01:43.6]} 17. Nb3 {[%clk 0:01:31.5]} 17... Ba6 {[%clk 0:01:41.7]}
18. Re1 {[%clk 0:01:28.6]} 18... Bd6 {[%clk 0:01:35]} 19. Bh6 {[%clk 0:01:24.9]}
19... Rfc8 {[%clk 0:01:22.3]} 20. d4 {[%clk 0:01:24.3]} 20... Bc4 {[%clk
0:01:09.9]} 21. Nd2 {[%clk 0:01:23.2]} 21... Bd3 {[%clk 0:01:07.9]} 22. Re3
{[%clk 0:01:21.5]} 22... Bf5 {[%clk 0:01:06.3]} 23. Rae1 {[%clk 0:01:01.7]}
23... Rc7 {[%clk 0:01:06.1]} 24. g4 {[%clk 0:00:56.1]} 24... Bc8 {[%clk
0:01:02.7]} 25. Nf3 {[%clk 0:00:52]} 25... f6 {[%clk 0:01:02.1]} 26. Kg2 {[%clk
0:00:29.2]} 26... Kf7 {[%clk 0:00:55.9]} 27. g5 {[%clk 0:00:24]} 27... f5 {[%clk
0:00:31.5]} 28. Ne5+ {[%clk 0:00:19.9]} 28... Bxe5 {[%clk 0:00:31.4]} 29. Rxe5
{[%clk 0:00:20.5]} 29... e6 {[%clk 0:00:31.8]} 30. h4 {[%clk 0:00:19.7]} 30...
Bd7 {[%clk 0:00:31.3]} 31. R5e2 {[%clk 0:00:14.6]} 31... b5 {[%clk 0:00:30.4]}
32. Kf3 {[%clk 0:00:14.5]} 32... a5 {[%clk 0:00:27.2]} 33. Kf4 {[%clk
0:00:14.5]} 33... b4 {[%clk 0:00:26.9]} 34. Re3 {[%clk 0:00:14.4]} 34... bxc3
{[%clk 0:00:25.6]} 35. Rxc3 {[%clk 0:00:11.8]} 35... Rxc3 {[%clk 0:00:25.3]} 36.
bxc3 {[%clk 0:00:12.7]} 36... Rb8 {[%clk 0:00:24.9]} 37. Ke5 {[%clk 0:00:12.7]}
37... Rb2 {[%clk 0:00:21.3]} 38. Kd6 {[%clk 0:00:12.1]} 38... Ba4 {[%clk
0:00:15.9]} 39. f4 {[%clk 0:00:09.4]} 39... Bc2 {[%clk 0:00:09.4]} 40. a3 {[%clk
0:00:08.5]} 40... Be4 {[%clk 0:00:08.5]} 41. Kc5 {[%clk 0:00:07.7]} 41... a4
{[%clk 0:00:07.3]} 42. Kd6 {[%clk 0:00:06.5]} 42... Rb3 {[%clk 0:00:06.7]} 43.
Kc5 {[%clk 0:00:04.5]} 43... Rxa3 {[%clk 0:00:05.1]} 44. Kb4 {[%clk 0:00:04.9]}
44... Rb3+ {[%clk 0:00:05.4]} 45. Kxa4 {[%clk 0:00:04.6]} 45... Rxc3 {[%clk
0:00:05.8]} 46. Kb4 {[%clk 0:00:04.4]} 46... Rc4+ {[%clk 0:00:06]} 47. Kb5
{[%clk 0:00:04.9]} 47... Rxd4 {[%clk 0:00:06.3]} 48. Ra1 {[%clk 0:00:05]} 48...
Bd3+ {[%clk 0:00:03]} 49. Kc5 {[%clk 0:00:04.8]} 49... Rc4+ {[%clk 0:00:02.9]}
50. Kd6 {[%clk 0:00:05.1]} 50... Rxf4 {[%clk 0:00:03.2]} 51. Ra7+ {[%clk
0:00:05.2]} 51... Ke8 {[%clk 0:00:03.2]} 52. Ra8+ {[%clk 0:00:04.6]} 52... Kf7
{[%clk 0:00:03.2]} 53. Rf8# {[%clk 0:00:05]} 1-0